[Event "Championnat d'Europe Rapide"]
[Date "2024.12.08"]
[White "Cvitan, Ognjen"]
[Black "Danov, Lyubomir"]
[WhiteElo "2413"]
[BlackElo "2297"]
[Round "7.26"]
[Result "1/2-1/2"]
[TimeControl "900+10"]

1. d4 {[%emt 00:00:12] [%clk 00:15:07]} d5 {[%emt 00:00:02] [%clk 00:15:18]} 2.
c4 {[%emt 00:00:03] [%clk 00:15:14]} c6 {[%emt 00:00:02] [%clk 00:15:26]} 3. Nf3
{[%emt 00:00:02] [%clk 00:15:22]} Nf6 {[%emt 00:00:02] [%clk 00:15:34]} 4. Nc3
{[%emt 00:00:03] [%clk 00:15:30]} e6 {[%emt 00:00:09] [%clk 00:15:35]} 5. e3
{[%emt 00:00:19] [%clk 00:15:20]} a6 {[%emt 00:00:06] [%clk 00:15:39]} 6. b3
{[%emt 00:00:29] [%clk 00:15:02]} Bb4 {[%emt 00:00:08] [%clk 00:15:41]} 7. Bd2
{[%emt 00:00:02] [%clk 00:15:10]} O-O {[%emt 00:00:11] [%clk 00:15:40]} 8. Bd3
{[%emt 00:00:06] [%clk 00:15:13]} Nbd7 {[%emt 00:00:43] [%clk 00:15:08]} 9. O-O
{[%emt 00:00:15] [%clk 00:15:08]} c5 {[%emt 00:00:30] [%clk 00:14:48]} 10. a3
{[%emt 00:01:28] [%clk 00:13:50]} Bxc3 {[%emt 00:00:47] [%clk 00:14:10]} 11.
Bxc3 {[%emt 00:00:03] [%clk 00:13:57]} cxd4 {[%emt 00:00:06] [%clk 00:14:15]}
12. Bxd4 {[%emt 00:00:54] [%clk 00:13:13]} dxc4 {[%emt 00:00:04] [%clk
00:14:19]} 13. Bxc4 {[%emt 00:00:05] [%clk 00:13:20]} b5 {[%emt 00:00:02] [%clk
00:14:27]} 14. Be2 {[%emt 00:00:10] [%clk 00:13:20]} Bb7 {[%emt 00:00:03] [%clk
00:14:34]} 15. a4 {[%emt 00:00:22] [%clk 00:13:09]} b4 {[%emt 00:00:07] [%clk
00:14:36]} 16. a5 {[%emt 00:00:04] [%clk 00:13:14]} Qe7 {[%emt 00:00:09] [%clk
00:14:38]} 17. Rc1 {[%emt 00:00:54] [%clk 00:12:30]} Rfc8 {[%emt 00:00:17] [%clk
00:14:30]} 18. Qd2 {[%emt 00:00:09] [%clk 00:12:31]} e5 {[%emt 00:00:15] [%clk
00:14:26]} 19. Ba1 {[%emt 00:00:30] [%clk 00:12:11]} Ne4 {[%emt 00:00:13] [%clk
00:14:22]} 20. Qa2 {[%emt 00:00:11] [%clk 00:12:11]} Nc3 {[%emt 00:01:17] [%clk
00:13:15]} 21. Bxc3 {[%emt 00:00:22] [%clk 00:11:59]} bxc3 {[%emt 00:00:04]
[%clk 00:13:21]} 22. Rfd1 {[%emt 00:00:15] [%clk 00:11:54]} Nf6 {[%emt 00:00:24]
[%clk 00:13:07]} 23. Ne1 {[%emt 00:01:00] [%clk 00:11:04]} Bd5 {[%emt 00:00:49]
[%clk 00:12:28]} 24. Qa4 {[%emt 00:01:53] [%clk 00:09:21]} Rab8 {[%emt 00:00:54]
[%clk 00:11:44]} 25. Bc4 {[%emt 00:00:01] [%clk 00:09:29]} Bxc4 {[%emt 00:00:54]
[%clk 00:11:01]} 26. bxc4 {[%clk 00:09:38]} Ne4 {[%emt 00:01:21] [%clk
00:09:50]} 27. f3 {[%emt 00:02:51] [%clk 00:06:57]} Nc5 {[%emt 00:02:32] [%clk
00:07:28]} 28. Qc2 {[%emt 00:00:05] [%clk 00:07:03]} e4 {[%emt 00:00:14] [%clk
00:07:24]} 29. Qxc3 {[%emt 00:00:20] [%clk 00:06:53]} exf3 {[%emt 00:00:04]
[%clk 00:07:29]} 30. Nxf3 {[%emt 00:00:01] [%clk 00:07:02]} Rb3 {[%emt 00:00:06]
[%clk 00:07:33]} 31. Qe5 {[%emt 00:00:33] [%clk 00:06:39]} Qxe5 {[%emt 00:00:09]
[%clk 00:07:34]} 32. Nxe5 {[%clk 00:06:48]} Rxe3 {[%emt 00:00:06] [%clk
00:07:38]} 33. Rd5 {[%emt 00:01:09] [%clk 00:05:49]} Rxe5 {[%emt 00:01:03] [%clk
00:06:46]} 34. Rxe5 {[%emt 00:00:04] [%clk 00:05:56]} Nd3 {[%clk 00:06:54]} 35.
Rce1 {[%emt 00:01:09] [%clk 00:04:57]} Nxe1 {[%emt 00:00:03] [%clk 00:07:01]}
36. Rxe1 {[%emt 00:00:01] [%clk 00:05:06]} Kf8 {[%emt 00:00:02] [%clk 00:07:09]}
37. Rb1 {[%emt 00:00:40] [%clk 00:04:36]} Rc5 {[%emt 00:00:05] [%clk 00:07:14]}
38. Rb8+ {[%emt 00:00:03] [%clk 00:04:43]} Ke7 {[%emt 00:00:01] [%clk 00:07:23]}
39. Rb7+ {[%emt 00:00:01] [%clk 00:04:52]} Ke8 {[%emt 00:00:03] [%clk 00:07:30]}
40. Rb8+ {[%emt 00:00:02] [%clk 00:05:00]} Ke7 {[%emt 00:00:01] [%clk 00:07:38]}
41. Rb7+ {[%emt 00:00:01] [%clk 00:05:09]} Ke8 {[%clk 00:07:47]} 1/2-1/2

[Site "Europe Echecs"]

[Event "Championnat d'Europe Rapide"]
[Date "2024.12.08"]
[White "Livaic, Leon"]
[Black "Domalchuk-Jonasson, Aleksandr"]
[WhiteElo "2560"]
[BlackElo "2377"]
[Round "7.27"]
[Result "1/2-1/2"]
[TimeControl "900+10"]

1. d4 {[%emt 00:00:02] [%clk 00:15:18]} Nf6 {[%emt 00:00:05] [%clk 00:15:15]} 2.
c4 {[%emt 00:00:02] [%clk 00:15:25]} e6 {[%emt 00:00:03] [%clk 00:15:22]} 3. Nf3
{[%emt 00:00:03] [%clk 00:15:32]} d5 {[%emt 00:00:07] [%clk 00:15:25]} 4. g3
{[%emt 00:00:07] [%clk 00:15:35]} dxc4 {[%emt 00:00:13] [%clk 00:15:22]} 5. Bg2
{[%emt 00:00:03] [%clk 00:15:42]} c5 {[%emt 00:00:10] [%clk 00:15:22]} 6. O-O
{[%emt 00:00:06] [%clk 00:15:47]} Nc6 {[%emt 00:00:02] [%clk 00:15:30]} 7. dxc5
{[%emt 00:00:06] [%clk 00:15:51]} Qxd1 {[%emt 00:00:03] [%clk 00:15:36]} 8. Rxd1
{[%emt 00:00:01] [%clk 00:16:00]} Bxc5 {[%emt 00:00:02] [%clk 00:15:45]} 9. Nbd2
{[%emt 00:00:05] [%clk 00:16:04]} c3 {[%emt 00:00:02] [%clk 00:15:53]} 10. bxc3
{[%emt 00:00:02] [%clk 00:16:13]} O-O {[%emt 00:00:02] [%clk 00:16:00]} 11. Nb3
{[%emt 00:00:02] [%clk 00:16:21]} Be7 {[%emt 00:00:01] [%clk 00:16:08]} 12. Nfd4
{[%emt 00:00:11] [%clk 00:16:20]} Nxd4 {[%emt 00:00:03] [%clk 00:16:16]} 13.
cxd4 {[%emt 00:00:02] [%clk 00:16:28]} Nd5 {[%emt 00:00:03] [%clk 00:16:23]} 14.
Na5 {[%emt 00:00:37] [%clk 00:16:01]} Bb4 {[%emt 00:00:13] [%clk 00:16:20]} 15.
Nc4 {[%emt 00:00:18] [%clk 00:15:53]} Bd7 {[%emt 00:00:44] [%clk 00:15:46]} 16.
Bd2 {[%emt 00:01:33] [%clk 00:14:30]} Rfc8 {[%emt 00:07:32] [%clk 00:08:24]} 17.
Bxd5 {[%emt 00:06:00] [%clk 00:08:39]} exd5 {[%emt 00:00:02] [%clk 00:08:32]}
18. Ne3 {[%emt 00:00:56] [%clk 00:07:53]} Bxd2 {[%emt 00:03:23] [%clk 00:05:19]}
19. Rxd2 {[%emt 00:00:01] [%clk 00:08:02]} Bc6 {[%emt 00:00:02] [%clk 00:05:27]}
20. Rc1 {[%emt 00:02:18] [%clk 00:05:54]} f6 {[%emt 00:00:10] [%clk 00:05:28]}
21. Rc5 {[%emt 00:01:16] [%clk 00:04:48]} Rd8 {[%emt 00:00:02] [%clk 00:05:36]}
22. Nc2 {[%emt 00:00:23] [%clk 00:04:35]} a5 {[%emt 00:00:38] [%clk 00:05:08]}
23. Ne1 {[%emt 00:01:06] [%clk 00:03:39]} Kf7 {[%emt 00:00:16] [%clk 00:05:03]}
24. Rb2 {[%emt 00:00:26]} Ke6 {[%clk 00:04:54]} 25. Nd3 {[%emt 00:00:02] [%clk
00:03:50]} Kd6 {[%emt 00:00:08] [%clk 00:04:55]} 26. f3 {[%emt 00:00:17] [%clk
00:03:42]} Rdb8 {[%emt 00:02:18] [%clk 00:02:48]} 27. Kf2 {[%emt 00:00:18] [%clk
00:03:34]} b6 {[%emt 00:00:08] [%clk 00:02:50]} 28. Rc3 {[%emt 00:00:05] [%clk
00:03:39]} Be8 {[%emt 00:00:15] [%clk 00:02:44]} 29. e4 {[%emt 00:00:19] [%clk
00:03:30]} dxe4 {[%emt 00:00:59] [%clk 00:01:56]} 30. fxe4 {[%emt 00:00:01]
[%clk 00:03:39]} Bg6 {[%emt 00:01:12] [%clk 00:00:54]} 31. Ke3 {[%emt 00:00:06]
[%clk 00:03:42]} Kd7 {[%emt 00:00:25] [%clk 00:00:40]} 32. Nf4 {[%emt 00:01:47]
[%clk 00:02:05]} Bf7 {[%emt 00:00:01] [%clk 00:00:50]} 33. d5 {[%emt 00:00:25]
[%clk 00:01:50]} Ra7 {[%emt 00:00:34] [%clk 00:00:26]} 34. Rc6 {[%emt 00:00:30]
[%clk 00:01:29]} b5 {[%emt 00:00:03] [%clk 00:00:33]} 35. Nd3 {[%emt 00:00:15]
[%clk 00:01:25]} b4 {[%emt 00:00:04] [%clk 00:00:39]} 36. Kd4 {[%emt 00:00:10]
[%clk 00:01:25]} Kd8 {[%emt 00:00:11] [%clk 00:00:39]} 37. e5 {[%emt 00:00:51]
[%clk 00:00:43]} fxe5+ {[%emt 00:00:26] [%clk 00:00:23]} 38. Nxe5 {[%clk
00:00:53]} Be8 {[%emt 00:00:02] [%clk 00:00:31]} 39. Kc5 {[%emt 00:00:26] [%clk
00:00:37]} Re7 {[%emt 00:00:27] [%clk 00:00:14]} 40. Rd6+ {[%emt 00:00:13] [%clk
00:00:34]} Kc7 {[%clk 00:00:24]} 41. Nc6 {[%emt 00:00:17] [%clk 00:00:27]} Re3
{[%emt 00:00:22] [%clk 00:00:12]} 42. Rc2 {[%emt 00:00:14] [%clk 00:00:23]} b3
{[%emt 00:00:08] [%clk 00:00:14]} 43. axb3 {[%emt 00:00:04] [%clk 00:00:29]}
Rbxb3 {[%emt 00:00:08] [%clk 00:00:16]} 44. Rc4 {[%emt 00:00:20] [%clk
00:00:18]} a4 {[%emt 00:00:14] [%clk 00:00:13]} 45. Nd4 {[%emt 00:00:04] [%clk
00:00:24]} Rbc3 {[%emt 00:00:10] [%clk 00:00:13]} 46. Ne6+ {[%emt 00:00:17]
[%clk 00:00:17]} Kb7 {[%emt 00:00:05] [%clk 00:00:18]} 47. Rb6+ {[%emt 00:00:04]
[%clk 00:00:23]} Ka7 {[%emt 00:00:02] [%clk 00:00:26]} 48. Rb1 {[%emt 00:00:16]
[%clk 00:00:16]} a3 {[%emt 00:00:05] [%clk 00:00:32]} 49. Ra1 {[%emt 00:00:12]
[%clk 00:00:14]} Bf7 {[%emt 00:00:11] [%clk 00:00:31]} 50. Rxc3 {[%emt 00:00:07]
[%clk 00:00:17]} Rxc3+ {[%clk 00:00:40]} 51. Kd4 {[%emt 00:00:11] [%clk
00:00:15]} Rb3 {[%emt 00:00:16] [%clk 00:00:34]} 52. Nc5 {[%emt 00:00:08] [%clk
00:00:17]} Rb4+ {[%emt 00:00:05] [%clk 00:00:39]} 53. Kc3 {[%emt 00:00:11] [%clk
00:00:15]} Rb5 {[%emt 00:00:08] [%clk 00:00:42]} 54. Rxa3+ {[%emt 00:00:08]
[%clk 00:00:17]} Kb6 {[%clk 00:00:51]} 55. Nd7+ {[%emt 00:00:07] [%clk
00:00:20]} Kc7 {[%emt 00:00:01] [%clk 00:00:59]} 56. Nf8 {[%emt 00:00:15] [%clk
00:00:15]} Bxd5 {[%emt 00:00:46] [%clk 00:00:23]} 57. Nxh7 {[%emt 00:00:01]
[%clk 00:00:23]} Kd6 {[%emt 00:00:08] [%clk 00:00:25]} 58. Ng5 {[%emt 00:00:12]
[%clk 00:00:21]} Ke5 {[%emt 00:00:05] [%clk 00:00:30]} 59. Nh3 {[%emt 00:00:15]
[%clk 00:00:15]} Be4 {[%emt 00:00:24] [%clk 00:00:16]} 60. Ra7 {[%emt 00:00:11]
[%clk 00:00:15]} Rb7 {[%emt 00:00:15] [%clk 00:00:11]} 61. Ra5+ {[%emt 00:00:05]
[%clk 00:00:19]} Kf6 {[%emt 00:00:02] [%clk 00:00:19]} 62. Nf4 {[%emt 00:00:09]
[%clk 00:00:20]} Rd7 {[%emt 00:00:13] [%clk 00:00:17]} 63. h4 {[%emt 00:00:13]
[%clk 00:00:16]} g6 {[%emt 00:00:04] [%clk 00:00:23]} 64. Kc4 {[%emt 00:00:11]
[%clk 00:00:14]} Bf5 {[%emt 00:00:09] [%clk 00:00:23]} 65. Nd5+ {[%emt 00:00:05]
[%clk 00:00:19]} Kf7 {[%emt 00:00:09] [%clk 00:00:25]} 66. Nf4 {[%emt 00:00:15]
[%clk 00:00:14]} Kf6 {[%emt 00:00:12] [%clk 00:00:23]} 67. Ra6+ {[%emt 00:00:04]
[%clk 00:00:20]} Kf7 {[%emt 00:00:02] [%clk 00:00:30]} 68. Kc5 {[%emt 00:00:14]
[%clk 00:00:16]} Re7 {[%emt 00:00:11] [%clk 00:00:29]} 69. Nd5 {[%emt 00:00:07]
[%clk 00:00:18]} Rb7 {[%emt 00:00:14] [%clk 00:00:26]} 70. Ra3 {[%emt 00:00:11]
[%clk 00:00:17]} Kg7 {[%emt 00:00:20]} 71. Kd6 {[%clk 00:00:21]} Rd7+ {[%emt
00:00:14] [%clk 00:00:19]} 72. Ke5 {[%emt 00:00:01] [%clk 00:00:30]} Rb7 {[%emt
00:00:10] [%clk 00:00:18]} 73. Ra5 {[%emt 00:00:24] [%clk 00:00:16]} Kh6 {[%emt
00:00:14] [%clk 00:00:15]} 74. Ra3 {[%emt 00:00:10] [%clk 00:00:16]} Kg7 {[%emt
00:00:03] [%clk 00:00:21]} 75. Kf4 {[%emt 00:00:06] [%clk 00:00:19]} Be6 {[%emt
00:00:06] [%clk 00:00:26]} 76. Ne3 {[%emt 00:00:07] [%clk 00:00:22]} Kf6 {[%emt
00:00:09] [%clk 00:00:28]} 77. Ra4 {[%emt 00:00:06] [%clk 00:00:25]} Rb3 {[%emt
00:00:06] [%clk 00:00:32]} 78. g4 {[%emt 00:00:15] [%clk 00:00:21]} Rb5 {[%emt
00:00:10] [%clk 00:00:32]} 79. g5+ {[%emt 00:00:06] [%clk 00:00:25]} Kf7 {[%emt
00:00:13] [%clk 00:00:29]} 80. Ra7+ {[%emt 00:00:01] [%clk 00:00:33]} Kf8 {[%emt
00:00:02] [%clk 00:00:37]} 81. Nc2 {[%emt 00:00:20] [%clk 00:00:22]} Rd5 {[%emt
00:00:16] [%clk 00:00:31]} 82. Ke4 {[%emt 00:00:11] [%clk 00:00:21]} Rc5 {[%emt
00:00:19] [%clk 00:00:22]} 83. Nd4 {[%emt 00:00:04] [%clk 00:00:28]} Bf5+ {[%emt
00:00:09] [%clk 00:00:23]} 84. Kf4 {[%emt 00:00:11] [%clk 00:00:26]} Rd5 {[%emt
00:00:21] [%clk 00:00:13]} 85. Ra4 {[%clk 00:00:34]} Bd7 {[%emt 00:00:06] [%clk
00:00:17]} 86. Rb4 {[%emt 00:00:24] [%clk 00:00:20]} Ke7 {[%emt 00:00:04] [%clk
00:00:24]} 87. Nf3 {[%emt 00:00:03] [%clk 00:00:26]} Rf5+ {[%emt 00:00:03] [%clk
00:00:32]} 88. Ke3 {[%emt 00:00:05] [%clk 00:00:28]} Bc6 {[%emt 00:00:28] [%clk
00:00:17]} 89. Nd4 {[%emt 00:00:05] [%clk 00:00:33]} Re5+ {[%emt 00:00:01] [%clk
00:00:26]} 90. Kf2 {[%emt 00:00:08] [%clk 00:00:34]} Be4 {[%emt 00:00:20] [%clk
00:00:17]} 91. Rb6 {[%emt 00:00:12] [%clk 00:00:31]} Kf7 {[%emt 00:00:04] [%clk
00:00:24]} 92. Ra6 {[%emt 00:00:21] [%clk 00:00:20]} Re7 {[%emt 00:00:14] [%clk
00:00:20]} 93. Rf6+ {[%emt 00:00:03] [%clk 00:00:27]} Kg7 {[%emt 00:00:05] [%clk
00:00:25]} 94. Ne6+ {[%emt 00:00:03] [%clk 00:00:34]} Kh7 {[%emt 00:00:14] [%clk
00:00:21]} 95. Nf4 {[%emt 00:00:20] [%clk 00:00:25]} Bb1 {[%emt 00:00:16] [%clk
00:00:15]} 96. Nd5 {[%emt 00:00:19] [%clk 00:00:14]} Rd7 {[%emt 00:00:09] [%clk
00:00:18]} 97. Nf4 {[%emt 00:00:12] [%clk 00:00:13]} Re7 {[%emt 00:00:03] [%clk
00:00:25]} 98. Rb6 {[%emt 00:00:01] [%clk 00:00:21]} Bc2 {[%emt 00:00:02] [%clk
00:00:33]} 99. Nd5 {[%emt 00:00:06] [%clk 00:00:26]} Ra7 {[%emt 00:00:25] [%clk
00:00:19]} 100. Ke3 {[%emt 00:00:12] [%clk 00:00:23]} Kg7 {[%emt 00:00:07] [%clk
00:00:22]} 101. Rc6 {[%emt 00:00:17] [%clk 00:00:16]} Bb1 {[%emt 00:00:09] [%clk
00:00:22]} 102. Rc7+ {[%emt 00:00:13] [%clk 00:00:14]} Rxc7 {[%clk 00:00:31]}
103. Nxc7 {[%clk 00:00:23]} Kf7 {[%emt 00:00:05] [%clk 00:00:37]} 104. Kd4
{[%emt 00:00:01] [%clk 00:00:32]} Ke7 {[%emt 00:00:07] [%clk 00:00:40]} 105. Ke5
{[%clk 00:00:41]} Ba2 {[%emt 00:00:05] [%clk 00:00:44]} 106. Nb5 {[%emt
00:00:06] [%clk 00:00:45]} Bb1 {[%emt 00:00:28] [%clk 00:00:26]} 107. Nc3 {[%emt
00:00:05] [%clk 00:00:51]} Bc2 {[%emt 00:00:07] [%clk 00:00:29]} 108. Nd5+
{[%emt 00:00:01] [%clk 00:01:00]} Kf7 {[%emt 00:00:01] [%clk 00:00:38]} 109. Kd6
{[%emt 00:00:01] [%clk 00:01:08]} Bf5 {[%emt 00:00:08] [%clk 00:00:39]} 110. Nb6
{[%emt 00:00:30] [%clk 00:00:49]} Bh3 {[%emt 00:00:35] [%clk 00:00:14]} 111. Nd7
{[%emt 00:00:07] [%clk 00:00:52]} Bf5 {[%emt 00:00:01] [%clk 00:00:23]} 112.
Ne5+ {[%emt 00:00:16] [%clk 00:00:46]} Kf8 {[%emt 00:00:01] [%clk 00:00:32]}
113. Nc4 {[%emt 00:00:30] [%clk 00:00:26]} Kf7 {[%emt 00:00:02] [%clk 00:00:40]}
114. Ke5 {[%emt 00:00:09] [%clk 00:00:26]} Bh3 {[%emt 00:00:06] [%clk 00:00:44]}
115. Nd2 {[%emt 00:00:20] [%clk 00:00:16]} Ke7 {[%emt 00:00:04] [%clk 00:00:51]}
116. Ne4 {[%emt 00:00:04] [%clk 00:00:22]} Bf1 {[%emt 00:00:25] [%clk 00:00:35]}
117. Nf6 {[%emt 00:00:12] [%clk 00:00:20]} Bc4 {[%emt 00:00:11] [%clk 00:00:35]}
118. Ng4 {[%emt 00:00:14] [%clk 00:00:16]} Ba2 {[%emt 00:00:05] [%clk 00:00:39]}
119. Kd4 {[%emt 00:00:10] [%clk 00:00:16]} Ke6 {[%emt 00:00:10] [%clk 00:00:40]}
120. Ke4 {[%emt 00:00:11] [%clk 00:00:15]} Bb1+ {[%emt 00:00:02] [%clk
00:00:48]} 121. Kf4 {[%clk 00:00:24]} Bc2 {[%emt 00:00:11] [%clk 00:00:47]} 122.
Ne5 {[%emt 00:00:08] [%clk 00:00:26]} Bb1 {[%emt 00:00:04] [%clk 00:00:52]} 123.
Nc6 {[%emt 00:00:06] [%clk 00:00:30]} Kd6 {[%emt 00:00:09] [%clk 00:00:53]} 124.
Nd4 {[%emt 00:00:09] [%clk 00:00:31]} Kd5 {[%emt 00:00:04] [%clk 00:00:59]} 125.
Ne2 {[%emt 00:00:04] [%clk 00:00:37]} Ke6 {[%emt 00:00:03] [%clk 00:01:06]} 126.
Ke3 {[%emt 00:00:09] [%clk 00:00:38]} Kf5 {[%emt 00:00:05] [%clk 00:01:11]} 127.
Nc3 {[%emt 00:00:24] [%clk 00:00:24]} Bc2 {[%emt 00:00:05] [%clk 00:01:16]} 128.
Kf3 {[%emt 00:00:03] [%clk 00:00:31]} Bb3 {[%emt 00:00:07] [%clk 00:01:18]} 129.
Nb5 {[%emt 00:00:08] [%clk 00:00:33]} Bd5+ {[%emt 00:00:10] [%clk 00:01:18]}
130. Kg3 {[%emt 00:00:04] [%clk 00:00:39]} Ba2 {[%emt 00:00:12] [%clk 00:01:16]}
131. Nd4+ {[%emt 00:00:10] [%clk 00:00:40]} Ke5 {[%emt 00:00:04] [%clk
00:01:22]} 132. Nc6+ {[%emt 00:00:06] [%clk 00:00:44]} Kd6 {[%emt 00:00:16]
[%clk 00:01:15]} 133. Nb4 {[%emt 00:00:01] [%clk 00:00:53]} Bb1 {[%emt 00:00:04]
[%clk 00:01:21]} 134. h5 {[%emt 00:00:32] [%clk 00:00:31]} Ke5 {[%emt 00:00:09]
[%clk 00:15:10]} 1/2-1/2

[Site "Europe Echecs"]

[Event "Championnat d'Europe Rapide"]
[Date "2024.12.08"]
[White "Stojanovski, Dejan"]
[Black "Dragicevic, Drazen"]
[WhiteElo "2407"]
[BlackElo "2332"]
[Round "7.28"]
[Result "1/2-1/2"]
[TimeControl "900+10"]

1. e4 {[%clk 00:15:18]} e5 {[%emt 00:00:04] [%clk 00:15:17]} 2. Nf3 {[%emt
00:00:04] [%clk 00:15:24]} Nf6 {[%emt 00:00:05] [%clk 00:15:22]} 3. Nxe5 {[%emt
00:00:03] [%clk 00:15:31]} d6 {[%emt 00:00:03] [%clk 00:15:29]} 4. Nf3 {[%emt
00:00:01] [%clk 00:15:40]} Nxe4 {[%emt 00:00:03] [%clk 00:15:37]} 5. Qe2 {[%emt
00:00:04] [%clk 00:15:45]} Qe7 {[%emt 00:00:17] [%clk 00:15:30]} 6. d3 {[%emt
00:00:01] [%clk 00:15:54]} Nf6 {[%emt 00:00:49] [%clk 00:14:50]} 7. Nc3 {[%emt
00:00:01] [%clk 00:16:03]} Qxe2+ {[%emt 00:00:49] [%clk 00:14:12]} 8. Bxe2
{[%emt 00:00:02] [%clk 00:16:11]} c6 {[%emt 00:00:24] [%clk 00:13:58]} 9. O-O
{[%emt 00:00:10] [%clk 00:16:11]} Be7 {[%emt 00:00:15] [%clk 00:13:53]} 10. Nd4
{[%emt 00:00:09] [%clk 00:16:11]} O-O {[%emt 00:01:45] [%clk 00:12:18]} 11. Bf3
{[%emt 00:00:33] [%clk 00:15:48]} Rd8 {[%emt 00:01:51] [%clk 00:10:37]} 12. Re1
{[%emt 00:00:22] [%clk 00:15:37]} Bf8 {[%emt 00:00:08] [%clk 00:10:39]} 13. h3
{[%emt 00:01:17] [%clk 00:14:29]} h6 {[%emt 00:01:30] [%clk 00:09:19]} 14. Bf4
{[%emt 00:00:06] [%clk 00:14:33]} g5 {[%emt 00:01:43] [%clk 00:07:46]} 15. Bg3
{[%emt 00:01:09] [%clk 00:13:35]} Bg7 {[%emt 00:00:12] [%clk 00:07:43]} 16. Rad1
{[%emt 00:00:42] [%clk 00:13:03]} Na6 {[%emt 00:01:46] [%clk 00:06:08]} 17. Nb3
{[%emt 00:01:26] [%clk 00:11:48]} Kf8 {[%emt 00:00:41] [%clk 00:05:36]} 18. Na5
{[%emt 00:00:35] [%clk 00:11:23]} Ne8 {[%emt 00:00:56] [%clk 00:04:50]} 19. a3
{[%emt 00:00:22] [%clk 00:11:12]} f5 {[%emt 00:00:10] [%clk 00:04:50]} 20. Nxc6
{[%emt 00:04:53] [%clk 00:06:29]} bxc6 {[%emt 00:00:12] [%clk 00:04:47]} 21.
Bxc6 {[%emt 00:00:01] [%clk 00:06:38]} Bd7 {[%emt 00:01:19] [%clk 00:03:38]} 22.
Bxa8 {[%emt 00:00:01] [%clk 00:06:47]} Rxa8 {[%emt 00:00:01] [%clk 00:03:47]}
23. f3 {[%emt 00:00:02] [%clk 00:06:56]} Rc8 {[%emt 00:00:21] [%clk 00:03:36]}
24. d4 {[%emt 00:00:05] [%clk 00:07:00]} Rb8 {[%emt 00:00:24] [%clk 00:03:21]}
25. Rb1 {[%emt 00:00:40] [%clk 00:06:30]} Bxd4+ {[%emt 00:00:24] [%clk
00:03:05]} 26. Bf2 {[%clk 00:06:40]} Bxf2+ {[%emt 00:01:00] [%clk 00:02:17]} 27.
Kxf2 {[%emt 00:00:01] [%clk 00:06:48]} Nc5 {[%emt 00:00:14] [%clk 00:02:15]} 28.
b4 {[%emt 00:00:44] [%clk 00:06:14]} Ne6 {[%emt 00:00:06] [%clk 00:02:19]} 29.
Nd5 {[%emt 00:00:04] [%clk 00:06:20]} Rc8 {[%emt 00:00:16] [%clk 00:02:13]} 30.
Rbc1 {[%emt 00:00:01] [%clk 00:06:29]} Kf7 {[%emt 00:00:22] [%clk 00:02:00]} 31.
c4 {[%emt 00:00:04] [%clk 00:06:36]} Nf6 {[%emt 00:00:35] [%clk 00:01:35]} 32.
Red1 {[%emt 00:00:35] [%clk 00:06:11]} Ne8 {[%emt 00:00:13] [%clk 00:01:32]} 33.
Ne3 {[%emt 00:00:24] [%clk 00:05:57]} f4 {[%emt 00:00:17] [%clk 00:01:25]} 34.
Nf5 {[%emt 00:00:14] [%clk 00:05:54]} Rc6 {[%emt 00:00:25] [%clk 00:01:10]} 35.
c5 {[%emt 00:00:11] [%clk 00:05:52]} Nxc5 {[%emt 00:00:37] [%clk 00:00:43]} 36.
Nxh6+ {[%emt 00:00:58] [%clk 00:05:04]} Kg6 {[%emt 00:00:01] [%clk 00:00:51]}
37. bxc5 {[%clk 00:05:14]} Kxh6 {[%emt 00:00:05] [%clk 00:00:56]} 38. cxd6
{[%emt 00:00:01] [%clk 00:05:22]} Ra6 {[%emt 00:00:10] [%clk 00:00:56]} 39. Rc3
{[%emt 00:00:02] [%clk 00:05:30]} Kg6 {[%emt 00:00:06] [%clk 00:01:00]} 40. Rd5
{[%emt 00:00:08] [%clk 00:05:32]} Kf6 {[%emt 00:00:14] [%clk 00:00:56]} 41. Rcd3
{[%emt 00:00:44] [%clk 00:04:58]} Ng7 {[%emt 00:00:06] [%clk 00:01:00]} 42. g4
{[%emt 00:01:04] [%clk 00:04:04]} fxg3+ {[%emt 00:00:08] [%clk 00:01:02]} 43.
Kxg3 {[%clk 00:04:13]} Nf5+ {[%emt 00:00:08] [%clk 00:01:04]} 44. Kf2 {[%clk
00:04:22]} Rc6 {[%emt 00:00:17] [%clk 00:00:57]} 45. Ra5 {[%emt 00:00:11] [%clk
00:04:22]} a6 {[%emt 00:00:17] [%clk 00:00:50]} 46. Rd2 {[%emt 00:00:02] [%clk
00:04:30]} Nxd6 {[%emt 00:00:29] [%clk 00:00:31]} 47. Rad5 {[%emt 00:00:03]
[%clk 00:04:37]} Ke7 {[%emt 00:00:05] [%clk 00:00:36]} 48. Rxg5 {[%emt 00:00:02]
[%clk 00:04:46]} Bxh3 {[%emt 00:00:07] [%clk 00:00:39]} 49. Rg7+ {[%emt
00:00:45] [%clk 00:04:10]} Kf6 {[%emt 00:00:13] [%clk 00:00:36]} 50. Rh7 {[%emt
00:00:02] [%clk 00:04:19]} Be6 {[%emt 00:00:19] [%clk 00:00:27]} 51. Rh6+ {[%emt
00:00:09] [%clk 00:04:20]} Kf7 {[%emt 00:00:02] [%clk 00:00:35]} 52. Rh7+ {[%emt
00:00:05] [%clk 00:04:25]} Kf6 {[%emt 00:00:02] [%clk 00:00:44]} 53. Rh6+ {[%emt
00:00:10] [%clk 00:04:25]} Kf7 {[%emt 00:00:21] [%clk 00:00:33]} 54. Rh7+ {[%emt
00:00:33] [%clk 00:04:02]} Kf6 {[%emt 00:00:01] [%clk 00:00:41]} 55. Rh6+ {[%emt
00:00:06] [%clk 00:04:06]} 1/2-1/2

[Site "Europe Echecs"]